fUST/lending_fUST_20250423
["ID","MTS","AMOUNT","RATE_DAILY","PERIOD"]
[358730698,1745404279600,-167593.85374343,0.0003,7]
[358730699,1745404279610,-420.76638591,0.0003,2]
[358730700,1745404279619,-381.47620169,0.0003,15]
[358730701,1745404279628,-1552.59690731,0.0003,10]
[358730702,1745404279637,-73424.06632807,0.0003,30]
[358730703,1745404279647,-1000.0,0.0003,120]
[358730704,1745404279656,-270.90993809,0.0003,7]
[358730705,1745404279666,-160.0,0.0003,2]
[358730706,1745404279676,-212.56227803,0.0003,7]
[358730707,1745404279685,-12573.79847128,0.0003,10]
[358730708,1745404279695,-12573.79847128,0.0003,7]
[358730709,1745404279705,-307.4,0.0003,15]
[358730710,1745404279714,-275.114,0.0003,2]
[358730711,1745404279723,-300.2,0.0003,30]
[358730712,1745404279733,-200.0,0.0003,2]
[358730713,1745404279743,-160.0,0.0003,10]
[358730714,1745404279753,-160.0,0.0003,120]
[358730715,1745404279763,-160.0,0.0003,7]
[358730716,1745404279772,-160.0,0.0003,30]
[358730717,1745404279781,-151.0,0.0003,7]
[358730718,1745404279791,-151.0,0.0003,7]
[358730719,1745404279800,-151.604165,0.0003,7]
[358730720,1745404279810,-156.416014,0.0003,7]
[358730721,1745404279820,-151.0,0.0003,7]
[358730722,1745404279830,-151.0,0.0003,7]
[358730723,1745404279840,-151.0,0.0003,7]
[358730724,1745404279849,-151.0,0.0003,7]
[358730725,1745404279859,-151.0,0.0003,7]
[358730726,1745404279868,-151.0,0.0003,7]
[358730727,1745404279877,-151.0,0.0003,7]
[358730728,1745404279887,-151.0,0.0003,7]
[358730729,1745404279897,-151.0,0.0003,7]
[358730730,1745404279906,-151.0,0.0003,7]
[358730731,1745404279915,-151.0,0.0003,7]
[358730732,1745404279925,-155.739423,0.0003,7]
[358730733,1745404279935,-1106.000768,0.0003,7]
[358730734,1745404279944,-1106.000768,0.0003,7]
[358730735,1745404280091,-151.0,0.0003,7]
[358730736,1745404280127,-151.0,0.0003,2]
[358730737,1745404280136,-151.0,0.0003,2]
[358730738,1745404280146,-312.97391606,0.0003,120]
[358730739,1745404280155,-160.0,0.0003,10]
[358730740,1745404280164,-160.0,0.0003,10]
[358730741,1745404280174,-160.0,0.0003,7]
[358730742,1745404280183,-160.0,0.0003,30]
[358730743,1745404280193,-1000.0,0.0003,2]
[358730744,1745404280202,-263.0,0.0003,2]
[358730745,1745404280211,-839.95942076,0.0003,10]
[358730746,1745404280221,-839.95942076,0.0003,7]
[358730747,1745404280230,-420.82143104,0.0003,10]
[358730748,1745404280240,-420.82143104,0.0003,7]
[358730749,1745404280249,-1500.0,0.0003,2]
[358730750,1745404280259,-800.0,0.00030017,7]
[358730751,1745404280268,-800.0,0.00030053,7]
[358730752,1745404280278,-500.0,0.00030137,2]
[358730753,1745404280289,-155.0,0.00030137,5]
[358730754,1745404280299,-2000.0,0.00030137,120]
[358730755,1745404280309,-151.0,0.00030137,2]
[358730756,1745404280318,-800.0,0.0003015,7]
[358730757,1745404280328,-168.0,0.00030205,2]
[358730758,1745404280338,-7222.55068407,0.00030245,9]
[358730759,1745404280347,-1613.0,0.00030372,2]
[358730760,1745404280357,-600.73138252,0.00030411,2]
[358730761,1745404280366,-151.0,0.00030411,2]
[358730762,1745404280376,-544.0,0.00030461,2]
[358730763,1745404280385,-706.0,0.00030461,2]
[358730764,1745404280396,-536.803,0.00030461,2]
[358730765,1745404280407,-700.0,0.00030472,7]
[358730766,1745404280418,-500.0,0.00030493,7]
[358730767,1745404280430,-160.0,0.00030502,5]
[358730768,1745404280441,-614.73421308,0.00030673,2]
[358730769,1745404280451,-156.0,0.00030685,5]
[358730770,1745404280461,-151.0,0.00030685,2]
[358730771,1745404280472,-2000.0,0.00030685,120]
[358730772,1745404280481,-700.0,0.00030717,7]
[358730773,1745404280490,-200.0,0.000308,5]
[358730774,1745404280500,-500.0,0.00030829,7]
[358730775,1745404280511,-7222.55068407,0.00030934,9]
[358730776,1745404280520,-206.22348176,0.00030959,2]
[358730777,1745404280531,-500.0,0.00030962,7]
[358730778,1745404280542,-301.32471235,0.0003099,2]
[358730779,1745404280551,-1000.0,0.00031,7]
[358730780,1745404280560,-600.0,0.00031,30]
[358730781,1745404280572,-1763.0,0.00031,15]
[358730782,1745404280582,-666.88,0.00031,120]
[358730783,1745404280591,-200.0,0.00031,6]
[358730784,1745404280601,-160.0,0.00031,120]
[358730785,1745404280610,-420.82143104,0.00031,120]
[358730786,1745404280619,-162.909661,0.0003105,2]
[358730787,1745404280629,-700.0,0.00031178,7]
[358730788,1745404280638,-500.0,0.00031185,7]
[358730789,1745404280647,-157.0,0.00031233,5]
[358730790,1745404280656,-2000.0,0.00031233,120]
[358730791,1745404280666,-1151.84626962,0.00031294,2]
[358730792,1745404280676,-700.0,0.00031374,7]
[358730793,1745404280686,-6599.38082963,0.000314,30]
[358730794,1745404280695,-800.0,0.0003142,7]
[358730795,1745404280705,-800.0,0.00031453,7]
[358730796,1745404280715,-499.3,0.00031523,7]
[358730797,1745404280724,-376.87,0.000316,60]
[358730798,1745404280733,-700.0,0.0003162,7]
[358730799,1745404280742,-7222.55068407,0.00031624,10]
[358730800,1745404280752,-2708.29536472,0.000317,7]
[358730801,1745404280762,-2000.0,0.000317,6]
[358730802,1745404280772,-2000.0,0.000317,6]
[358730803,1745404280781,-168.0,0.00031716,2]
[358730804,1745404280791,-160.0,0.00031716,6]
[358730805,1745404280800,-500.0,0.00031719,7]
[358730806,1745404280810,-800.0,0.00031748,7]
[358730807,1745404280819,-158.0,0.00031781,5]
[358730808,1745404280829,-2000.0,0.00031781,120]
[358730809,1745404280839,-251.1,0.000318,9]
[358730810,1745404280848,-800.0,0.00031858,7]
[358730811,1745404280858,-700.0,0.00031986,7]
[358730812,1745404280868,-1000.0,0.00032,2]
[358730813,1745404280877,-200.0,0.00032,10]
[358730814,1745404280887,-160.0,0.00032,10]
[358730815,1745404280897,-160.0,0.00032,10]
[358730816,1745404280906,-839.95942076,0.00032,10]
[358730817,1745404280916,-420.82143104,0.00032,10]
[358730818,1745404280925,-500.0,0.00032094,7]
[358730819,1745404280935,-700.0,0.0003231,7]
[358730820,1745404280944,-7222.55068407,0.00032314,10]
[358730821,1745404280953,-159.0,0.00032329,5]
[358730822,1745404280963,-2000.0,0.00032329,120]
[358730823,1745404280972,-700.0,0.00032367,7]
[358730824,1745404280982,-800.0,0.00032388,7]
[358730825,1745404280991,-317.0,0.000324,120]
[358730826,1745404281001,-3000.0,0.000325,2]
[358730827,1745404281011,-2000.0,0.000325,5]
[358730828,1745404281020,-2000.0,0.000325,5]
[358730829,1745404281029,-2000.0,0.000325,5]
[358730830,1745404281038,-2000.0,0.000325,5]
[358730831,1745404281047,-275.114,0.00032515,2]
[358730832,1745404281057,-800.0,0.00032615,7]
[358730833,1745404281066,-382.199999,0.000327,8]
[358730834,1745404281075,-2000.0,0.000327,8]
[358730835,1745404281085,-1010.0157288,0.000328,2]
[358730836,1745404281097,-800.0,0.00032845,7]
[358730837,1745404281106,-300.0,0.00032876,30]
[358730838,1745404281115,-300.0,0.00032876,30]
[358730839,1745404281124,-382.99890785,0.00032876,30]
[358730840,1745404281133,-500.0,0.00032876,120]
[358730841,1745404281143,-500.0,0.00032876,120]
[358730842,1745404281151,-500.0,0.00032876,120]
[358730843,1745404281161,-556.43074727,0.00032876,120]
[358730844,1745404281170,-1000.0,0.00032876,25]
[358730845,1745404281179,-1000.0,0.00032876,25]
[358730846,1745404281188,-1000.0,0.00032876,25]
[358730847,1745404281197,-1000.0,0.00032876,25]
[358730848,1745404281207,-1000.0,0.00032876,25]
[358730849,1745404281216,-1000.0,0.00032876,25]
[358730850,1745404281225,-1000.0,0.00032876,25]
[358730851,1745404281235,-1000.0,0.00032876,25]
[358730852,1745404281244,-1000.0,0.00032876,25]
[358730853,1745404281254,-1000.0,0.00032876,25]
[358730854,1745404281263,-1000.0,0.00032876,25]
[358730855,1745404281273,-1000.0,0.00032876,25]
[358730856,1745404281282,-681.67116748,0.00032876,25]
[358730857,1745404281292,-363.11956581,0.00032876,2]
[358730858,1745404281302,-500.0,0.00032876,2]
[358730859,1745404281311,-500.0,0.00032876,2]
[358730860,1745404281320,-220.0041602,0.00032876,2]
[358730861,1745404281329,-500.0,0.00032876,2]
[358730862,1745404281341,-500.0,0.00032876,2]
[358730863,1745404281351,-500.0,0.00032876,2]
[358730864,1745404281360,-500.0,0.00032876,2]
[358730865,1745404281369,-500.0,0.00032876,2]
[358730866,1745404281378,-500.0,0.00032876,2]
[358730867,1745404281388,-582.4531687,0.00032876,2]
[358730868,1745404281397,-289.59508569,0.00032876,2]
[358730869,1745404281406,-500.0,0.00032876,2]
[358730870,1745404281416,-507.41689803,0.00032876,2]
[358730871,1745404281427,-500.0,0.00032876,2]
[358730872,1745404281436,-418.83473555,0.00032876,2]
[358730873,1745404281445,-500.0,0.00032876,2]
[358730874,1745404281454,-500.0,0.00032876,2]
[358730875,1745404281465,-500.0,0.00032876,2]
[358730876,1745404281475,-500.0,0.00032876,2]
[358730877,1745404281484,-500.0,0.00032876,2]
[358730878,1745404281494,-500.0,0.00032876,2]
[358730879,1745404281507,-500.0,0.00032876,2]
[358730880,1745404281518,-500.0,0.00032876,2]
[358730881,1745404281527,-500.0,0.00032876,2]
[358730882,1745404281537,-500.0,0.00032876,2]
[358730883,1745404281546,-398.13472264,0.00032876,2]
[358730884,1745404281556,-252.83047425,0.00032876,2]
[358730885,1745404281565,-500.0,0.00032876,2]
[358730886,1745404281575,-500.0,0.00032876,2]
[358730887,1745404281585,-500.0,0.00032876,2]
[358730888,1745404281596,-500.0,0.00032876,2]
[358730889,1745404281606,-576.67620242,0.00032876,2]
[358730890,1745404281615,-500.0,0.00032876,2]
[358730891,1745404281624,-500.0,0.00032876,2]
[358730892,1745404281636,-442.79625046,0.00032876,2]
[358730893,1745404281646,-359.17800458,0.00032876,2]
[358730894,1745404281657,-500.0,0.00032876,2]
[358730895,1745404281669,-209.63326451,0.00032876,2]
[358730896,1745404281681,-500.0,0.00032876,2]
[358730897,1745404281691,-500.0,0.00032876,2]
[358730898,1745404281700,-500.0,0.00032877,2]
[358730899,1745404281709,-500.0,0.00032877,2]
[358730900,1745404281720,-177.3782222,0.00032877,120]
[358730901,1745404281730,-500.0,0.00032877,5]
[358730902,1745404281740,-1014.1542943,0.00032877,5]
[358730903,1745404281750,-160.0,0.00032877,5]
[358730904,1745404281759,-2000.0,0.00032877,120]
[358730905,1745404281768,-507.41632033,0.00032898,2]
[358730906,1745404281778,-500.0,0.00032899,2]
[358730907,1745404281787,-4825.53,0.00032899,2]
[358730908,1745404281796,-4825.53,0.00032899,2]
[358730909,1745404281805,-4825.53,0.00032899,2]
[358730910,1745404281815,-4825.53,0.00032899,2]
[358730911,1745404281824,-4825.53,0.00032899,2]
[358730912,1745404281833,-4825.53,0.00032899,2]
[358730913,1745404281844,-4825.53,0.00032899,2]
[358730914,1745404281854,-4825.53,0.00032899,2]
[358730915,1745404281863,-4825.53,0.00032899,2]
[358730916,1745404281872,-4825.53,0.00032899,2]
[358730917,1745404281882,-917.3,0.000329,30]
[358730918,1745404281891,-2531.49,0.000329,30]
[358730919,1745404281901,-28294.26,0.000329,30]
[358730920,1745404281910,-1060.32,0.000329,7]
[358730921,1745404281919,-156848.98747321,0.000329,30]
[358730922,1745404283040,-171.30158726,0.00019916,2]
[358730923,1745404323715,-198.97388622,0.00019916,2]
[358730924,1745404359721,-259.69072741,0.00019915,2]
[358730925,1745404365230,-252.9808,0.00019817,2]
[358730927,1745404382011,-178.96155116,0.00019817,2]
[358730928,1745404382042,-244.78779715,0.00019916,2]
[358730947,1745404445250,-300.0,0.00019915,2]
[358730948,1745404445279,-200.0,0.00019916,2]
[358730954,1745404488450,151.0,0.000176,2]
[358730955,1745404488895,-151.0,0.000198,2]
[358730956,1745404488963,151.0,0.000154,2]
[358730957,1745404489306,151.0,0.000132,2]
[358730958,1745404489611,151.0,0.00011,2]
[358730959,1745404491008,-55.21220285,0.00019916,2]
[358730960,1745404491037,-293.78779715,0.00019916,2]
[358730963,1745404504656,-199.932189,0.00019915,2]
[358730964,1745404513440,-100.067811,0.00019915,2]
[358730965,1745404513463,-111.55788215,0.00019915,2]
[358730966,1745404521012,-300.0,0.00019915,2]
[358730968,1745404535749,-88.44211785,0.00019915,2]
[358730969,1745404535773,-211.55788215,0.00019915,2]
[358730970,1745404542907,-288.44211785,0.00019915,2]
[358730971,1745404542931,-19.44445265,0.00019915,2]
[358730972,1745404555231,-170.34271849,0.00019817,2]
[358730973,1745404560693,-207.60683874,0.00019817,2]
[358730974,1745404560717,-380.56007438,0.00019818,2]
[358730977,1745404574406,-300.0,0.00019818,2]
[358730980,1745404633667,-151.5625425,0.00019818,2]
[358730981,1745404633692,-148.4374575,0.00019914,2]
[358730982,1745404651655,-152.0,0.00019817,2]
[358730983,1745404653263,232.45840558,0.00019,3]
[358730984,1745404680226,1000.0,0.00019,3]
[358730993,1745404747711,-330.70586262,0.00019815,2]
[358730999,1745404901564,-665.69809352,0.00019817,2]
[358731006,1745404933603,-917.79204764,0.00019815,7]
[358731010,1745404976275,-289.36762974,0.00019813,2]
[358731011,1745404976299,-210.63237026,0.00019815,7]
[358731013,1745404996293,-300.0,0.00019815,7]
[358731014,1745405002536,-200.0,0.00019815,7]
[358731017,1745405046495,-500.0,0.00019815,7]
[358731021,1745405086315,-300.0,0.00019815,7]
[358731022,1745405094117,-422.75291951,0.00019815,7]
[358731024,1745405097655,-388.35701563,0.00019815,7]
[358731025,1745405105121,-188.35701563,0.00019815,7]
[358731027,1745405109616,-311.64298437,0.00019815,7]
[358731028,1745405132451,-166.2011495,0.00019811,2]
[358731030,1745405162585,-92.21793753,0.00019811,2]
[358731031,1745405162609,-111.26496987,0.00019815,7]
[358731032,1745405193168,-174.7515356,0.00019815,7]
[358731034,1745405213731,-218.19480348,0.00019815,7]
[358731035,1745405223094,-152.0,0.00019815,7]
[358731036,1745405242768,-152.0,0.00019814,2]
[358731038,1745405282020,-160.0,0.00019814,2]
[358731039,1745405314132,-212.12774373,0.000189,2]
[358731040,1745405314158,-2.01885627,0.00019814,2]
[358731042,1745405324465,-221.4918,0.0001981,2]
[358731043,1745405345481,-4.62490109,0.0001981,2]
[358731044,1745405345505,-154.47427401,0.00019814,2]
[358731065,1745405402221,-121.89654043,0.00019814,2]
[358731066,1745405402246,-30.36072276,0.00019815,7]
[358731068,1745405406939,-183.34613243,0.00019815,7]
[358731069,1745405416922,-160.35266277,0.00019815,7]
[358731070,1745405427418,-209.23651307,0.00019815,7]
[358731088,1745405432535,-249.79393421,0.00019815,7]
[358731089,1745405432544,-590.38967069,0.00019883,2]
[358731090,1745405432552,-198.06,0.00019903,2]
[358731091,1745405432561,-486.21001437,0.00019903,2]
[358731092,1745405432569,-300.0,0.00019904,2]
[358731093,1745405432578,-502.81248578,0.00019905,2]
[358731094,1745405432587,-151.0,0.00019905,2]
[358731095,1745405432595,-151.0,0.00019905,2]
[358731096,1745405432603,-207.4,0.00019905,2]
[358731097,1745405432612,-151.0,0.00019905,2]
[358731098,1745405432621,-593.82,0.00019906,3]
[358731099,1745405432630,-900.0,0.00019908,2]
[358731100,1745405432639,-500.0,0.00019908,2]
[358731101,1745405432648,-9274.17045468,0.00019909,2]
[358731102,1745405432668,-40725.82954532,0.00019909,2]
[358731103,1745405432677,-500.0,0.00019909,2]
[358731104,1745405432687,-500.0,0.00019909,2]
[358731105,1745405432697,-629.72452651,0.00019909,2]
[358731106,1745405432706,-500.0,0.00019909,2]
[358731107,1745405432715,-500.0,0.00019909,2]
[358731108,1745405432724,-500.0,0.00019909,2]
[358731109,1745405432734,-500.0,0.00019909,2]
[358731110,1745405432742,-500.0,0.00019909,2]
[358731111,1745405432751,-500.0,0.00019909,2]
[358731112,1745405432759,-500.0,0.00019909,2]
[358731113,1745405432767,-500.0,0.00019909,2]
[358731114,1745405432776,-500.0,0.00019909,2]
[358731115,1745405432786,-500.0,0.00019909,2]
[358731116,1745405432798,-500.0,0.00019909,2]
[358731117,1745405432808,-500.0,0.00019909,2]
[358731118,1745405432817,-500.0,0.00019909,2]
[358731119,1745405432826,-500.0,0.00019909,2]
[358731120,1745405432837,-474.88697812,0.00019909,2]
[358731121,1745405432846,-500.0,0.00019909,2]
[358731122,1745405432855,-500.0,0.00019909,2]
[358731123,1745405432865,-500.0,0.00019909,2]
[358731124,1745405432875,-500.0,0.00019909,2]
[358731125,1745405432884,-500.0,0.00019909,2]
[358731126,1745405432894,-500.0,0.00019909,2]
[358731127,1745405432903,-500.0,0.00019909,2]
[358731128,1745405432913,-500.0,0.00019909,2]
[358731129,1745405432922,-500.0,0.00019909,2]
[358731130,1745405432932,-500.0,0.00019909,2]
[358731131,1745405432941,-500.0,0.00019909,2]
[358731132,1745405432951,-500.0,0.00019909,2]
[358731133,1745405432961,-500.0,0.00019909,2]
[358731134,1745405432971,-500.0,0.00019909,2]
[358731135,1745405432980,-500.0,0.00019909,2]
[358731136,1745405432989,-500.0,0.00019909,2]
[358731137,1745405432999,-500.0,0.00019909,2]
[358731138,1745405433008,-500.0,0.00019909,2]
[358731139,1745405433018,-500.0,0.00019909,2]
[358731140,1745405433027,-500.0,0.00019909,2]
[358731141,1745405433036,-500.0,0.00019909,2]
[358731142,1745405433046,-500.0,0.00019909,2]
[358731143,1745405433055,-500.0,0.00019909,2]
[358731144,1745405433064,-159.0991751,0.00019909,2]
[358731145,1745405433075,-152.25726319,0.00019909,2]
[358731146,1745405433084,-183.34613243,0.00019909,2]
[358731147,1745405433094,-500.0,0.00019909,2]
[358731148,1745405433104,-500.0,0.00019909,2]
[358731149,1745405433115,-500.0,0.00019909,2]
[358731150,1745405433125,-500.0,0.00019909,2]
[358731151,1745405433135,-1184.69,0.00019909,2]
[358731152,1745405433145,-500.0,0.00019909,2]
[358731153,1745405433155,-500.0,0.00019909,2]
[358731154,1745405433165,-500.0,0.00019909,2]
[358731155,1745405433176,-503.81021024,0.00019909,2]
[358731156,1745405433185,-500.0,0.00019909,2]
[358731157,1745405433195,-216.62398249,0.00019909,2]
[358731158,1745405433205,-1927.05,0.00019909,2]
[358731159,1745405433214,-501.54230888,0.00019909,2]
[358731160,1745405433223,-500.0,0.00019909,2]
[358731161,1745405433233,-500.0,0.00019909,2]
[358731162,1745405433242,-502.44541741,0.00019909,2]
[358731163,1745405433252,-500.0,0.00019909,2]
[358731164,1745405433266,-500.0,0.00019909,2]
[358731165,1745405433275,-500.0,0.00019909,2]
[358731166,1745405433284,-500.0,0.00019909,2]
[358731167,1745405433294,-465.08807758,0.00019909,2]
[358731168,1745405433303,-500.0,0.00019909,2]
[358731169,1745405433528,-500.0,0.00019909,2]
[358731170,1745405433538,-500.0,0.00019909,2]
[358731171,1745405433548,-543.85969439,0.00019909,2]
[358731172,1745405433558,-500.0,0.00019909,2]
[358731173,1745405433567,-500.0,0.0001991,2]
[358731174,1745405433576,-500.0,0.0001991,2]
[358731175,1745405433586,-1930.1,0.0001991,2]
[358731176,1745405433597,-500.0,0.0001991,2]
[358731177,1745405433606,-500.0,0.0001991,2]
[358731178,1745405433616,-3780.87,0.0001991,2]
[358731179,1745405433625,-500.0,0.0001991,2]
[358731180,1745405433635,-500.0,0.0001991,2]
[358731181,1745405433644,-500.0,0.0001991,2]
[358731182,1745405433654,-500.0,0.0001991,2]
[358731183,1745405433663,-500.0,0.0001991,2]
[358731184,1745405433673,-500.0,0.0001991,2]
[358731185,1745405433683,-500.0,0.0001991,2]
[358731186,1745405433693,-500.0,0.0001991,2]
[358731187,1745405433702,-500.0,0.0001991,2]
[358731188,1745405433711,-500.0,0.0001991,2]
[358731189,1745405433721,-500.0,0.0001991,2]
[358731190,1745405433730,-500.0,0.0001991,2]
[358731191,1745405433739,-500.0,0.00019911,2]
[358731192,1745405433749,-500.0,0.00019911,2]
[358731193,1745405433757,-500.0,0.00019911,2]
[358731194,1745405433767,-500.0,0.00019911,2]
[358731195,1745405433776,-500.0,0.00019911,2]
[358731196,1745405433786,-500.0,0.00019911,2]
[358731197,1745405433797,-500.0,0.00019911,2]
[358731198,1745405433808,-500.0,0.00019911,2]
[358731199,1745405433817,-500.0,0.00019911,2]
[358731200,1745405433826,-500.0,0.00019911,2]
[358731201,1745405433836,-500.0,0.00019911,2]
[358731202,1745405433845,-507.25396328,0.00019911,2]
[358731203,1745405433854,-500.0,0.00019911,2]
[358731204,1745405433863,-378.01199428,0.00019911,2]
[358731205,1745405433873,-500.0,0.00019911,2]
[358731206,1745405433885,-500.0,0.00019911,2]
[358731207,1745405433894,-500.0,0.00019911,2]
[358731208,1745405433903,-500.0,0.00019911,2]
[358731209,1745405433913,-312.81929572,0.00019911,2]
[358731210,1745405433922,-500.0,0.00019911,2]
[358731211,1745405433931,-500.0,0.00019911,2]
[358731212,1745405433940,-500.0,0.00019911,2]
[358731213,1745405433950,-500.0,0.00019911,2]
[358731214,1745405433959,-500.0,0.00019911,2]
[358731215,1745405433968,-500.0,0.00019911,2]
[358731216,1745405433978,-500.0,0.00019911,2]
[358731217,1745405433987,-500.0,0.00019911,2]
[358731218,1745405433997,-500.0,0.00019911,2]
[358731219,1745405434006,-500.0,0.00019911,2]
[358731220,1745405434016,-500.0,0.00019911,2]
[358731221,1745405434026,-500.0,0.00019911,2]
[358731222,1745405434035,-500.0,0.00019911,2]
[358731223,1745405434045,-1884.66,0.00019911,2]
[358731224,1745405434054,-500.0,0.00019911,2]
[358731225,1745405434064,-500.0,0.00019911,2]
[358731226,1745405434073,-500.0,0.00019911,2]
[358731227,1745405434084,-500.0,0.00019911,2]
[358731228,1745405434094,-500.0,0.00019911,2]
[358731229,1745405434103,-500.0,0.00019911,2]
[358731230,1745405434113,-500.0,0.00019911,2]
[358731231,1745405434123,-500.0,0.00019911,2]
[358731232,1745405434133,-500.0,0.00019911,2]
[358731233,1745405434142,-500.0,0.00019911,2]
[358731234,1745405434152,-500.0,0.00019911,2]
[358731235,1745405434161,-500.0,0.00019911,2]
[358731236,1745405434171,-500.0,0.00019911,2]
[358731237,1745405434180,-500.0,0.00019911,2]
[358731238,1745405434190,-500.0,0.00019911,2]
[358731239,1745405434199,-500.0,0.00019911,2]
[358731240,1745405434209,-500.0,0.00019911,2]
[358731241,1745405434219,-500.0,0.00019911,2]
[358731242,1745405434229,-500.0,0.00019911,2]
[358731243,1745405434238,-500.0,0.00019911,2]
[358731244,1745405434248,-500.0,0.00019911,2]
[358731245,1745405434257,-500.0,0.00019911,2]
[358731246,1745405434267,-512.45058543,0.00019911,2]
[358731247,1745405434276,-500.0,0.00019911,2]
[358731248,1745405434286,-500.0,0.00019911,2]
[358731249,1745405434296,-500.0,0.00019911,2]
[358731250,1745405434305,-500.0,0.00019911,2]
[358731251,1745405434314,-500.0,0.00019911,2]
[358731252,1745405434324,-500.0,0.00019911,2]
[358731253,1745405434334,-500.0,0.00019911,2]
[358731254,1745405434344,-500.0,0.00019911,2]
[358731255,1745405434353,-500.0,0.00019911,2]
[358731256,1745405434363,-500.0,0.00019911,2]
[358731257,1745405434373,-500.0,0.00019911,2]
[358731258,1745405434382,-500.0,0.00019911,2]
[358731259,1745405434392,-500.0,0.00019911,2]
[358731260,1745405434402,-500.0,0.00019911,2]
[358731261,1745405434412,-500.0,0.00019911,2]
[358731262,1745405434422,-500.0,0.00019911,2]
[358731263,1745405434432,-500.0,0.00019911,2]
[358731264,1745405434441,-334.33988575,0.00019911,2]
[358731265,1745405434451,-504.40342907,0.00019911,2]
[358731266,1745405434460,-500.0,0.00019911,2]
[358731267,1745405434470,-4427.13,0.00019911,2]
[358731268,1745405434479,-4427.13,0.00019911,2]
[358731269,1745405434489,-500.0,0.00019911,2]
[358731270,1745405434499,-4427.13,0.00019911,2]
[358731271,1745405434509,-500.0,0.00019911,2]
[358731272,1745405434518,-765.21,0.00019911,2]
[358731273,1745405434528,-500.0,0.00019911,2]
[358731274,1745405434538,-580.3286169,0.00019911,2]
[358731275,1745405434547,-500.0,0.00019911,2]
[358731276,1745405434557,-503.75232468,0.00019911,2]
[358731277,1745405434567,-500.0,0.00019911,2]
[358731278,1745405434576,-500.0,0.00019911,2]
[358731279,1745405434586,-500.0,0.00019911,2]
[358731280,1745405434595,-500.0,0.00019911,2]
[358731281,1745405434605,-500.0,0.00019911,2]
[358731282,1745405434614,-500.0,0.00019911,2]
[358731283,1745405434623,-500.0,0.00019911,2]
[358731284,1745405434632,-500.0,0.00019911,2]
[358731285,1745405434641,-500.0,0.00019911,2]
[358731286,1745405434651,-500.0,0.00019911,2]
[358731287,1745405434661,-500.0,0.00019911,2]
[358731288,1745405434670,-500.0,0.00019911,2]
[358731289,1745405434679,-500.0,0.00019911,2]
[358731290,1745405434689,-500.0,0.00019911,2]
[358731291,1745405434698,-500.0,0.00019911,2]
[358731292,1745405434707,-500.0,0.00019911,2]
[358731293,1745405434718,-500.0,0.00019911,2]
[358731294,1745405434728,-500.0,0.00019911,2]
[358731295,1745405434738,-500.0,0.00019911,2]
[358731296,1745405434747,-617.48,0.00019911,2]
[358731297,1745405434757,-500.0,0.00019911,2]
[358731298,1745405434767,-500.0,0.00019911,2]
[358731299,1745405434776,-522.73806549,0.00019911,2]
[358731300,1745405434786,-500.0,0.00019911,2]